bitfinex/quotes_SOLUSD_20240824
["timestamp","ask_amount","ask_price","bid_price","bid_amount"]
[1724465138480,0.46744368,153.59,153.58,21.30212976]
[1724465144696,8.61136316,153.59,153.58,21.30212976]
[1724465145994,8.61136316,153.59,153.58,20.0]
[1724465147094,8.61136316,153.59,153.58,21.30199377]
[1724465147969,8.61139949,153.59,153.58,21.30199377]
[1724465148397,0.46744368,153.59,153.58,21.30199377]
[1724465148601,8.61138258,153.59,153.58,21.30199377]
[1724465150700,8.61138258,153.59,153.53,15.1429]
[1724465151002,8.61138258,153.59,153.54,26.07566862]
[1724465151003,0.46744368,153.59,153.54,26.07566862]
[1724465152199,0.46744368,153.59,153.55,20.0]
[1724465153293,0.46744368,153.59,153.56,26.07566862]
[1724465153494,0.46744368,153.59,153.57,20.0]
[1724465154308,0.46744368,153.59,153.57,21.30209258]
[1724465155489,0.46744368,153.59,153.58,1.30196662]
[1724465155707,8.61158518,153.59,153.58,1.30196662]
[1724465155887,8.61158518,153.59,153.57,20.0]
[1724465156086,0.46744368,153.59,153.57,20.0]
[1724465156811,0.46744368,153.59,153.58,1.30194239]
[1724465157011,8.61155725,153.59,153.58,1.30194239]
[1724465157522,8.61155725,153.59,153.57,20.0]
[1724465157708,0.46744368,153.59,153.57,20.0]
[1724465158011,0.46744368,153.59,153.58,26.07566862]
[1724465158317,8.61123158,153.59,153.58,47.50297747]
[1724465158706,8.61123158,153.59,153.58,46.07566862]
[1724465159085,0.46744368,153.59,153.58,46.07566862]
[1724465159293,8.61126517,153.59,153.58,46.07566862]
[1724465159816,16.75511504,153.59,153.58,20.0]
[1724465160019,16.75511504,153.59,153.57,20.0]
[1724465160209,8.61126517,153.59,153.57,20.0]
[1724465162698,8.61126517,153.59,153.58,1.30200996]
[1724465163011,16.75513659,153.59,153.57,20.0]
[1724465163312,8.61126517,153.59,153.57,20.0]
[1724465166805,8.61126517,153.59,153.56,26.07566862]
[1724465167109,8.14418355,153.58,153.56,26.07566862]
[1724465167286,0.46744368,153.59,153.56,26.07566862]
[1724465167490,8.14418455,153.58,153.56,26.07566862]
[1724465167687,0.46744368,153.59,153.56,26.07566862]
[1724465167995,8.14418915,153.58,153.56,26.07566862]
[1724465168204,0.46744368,153.59,153.57,20.0]
[1724465168403,8.14419014,153.58,153.57,20.0]
[1724465169218,8.14419014,153.58,153.57,21.30212273]
[1724465171922,0.46744368,153.59,153.57,21.30212273]
[1724465172099,0.46744368,153.59,153.57,20.0]
[1724465172298,8.14413664,153.58,153.57,20.0]
[1724465173525,8.14413664,153.58,153.57,21.30213952]
[1724465174619,0.46744368,153.59,153.57,21.30213952]
[1724465174794,0.46744368,153.59,153.58,27.37769479]
[1724465174993,8.61153891,153.59,153.58,27.37769479]
[1724465176825,8.61153891,153.59,153.58,26.07566862]
[1724465178927,0.46744368,153.59,153.58,26.07566862]
[1724465179225,8.61158719,153.59,153.58,27.37771275]
[1724465179614,8.61158719,153.59,153.58,26.07566862]
[1724465181911,8.11158719,153.59,153.58,26.07566862]
[1724465182423,16.1957,153.61,153.58,26.07566862]
[1724465184443,16.1957,153.61,153.57,20.0]
[1724465190241,0.8272273,153.62,153.57,20.0]
[1724465190418,0.8272273,153.62,153.58,27.37758614]
[1724465190620,0.8272273,153.62,153.59,20.0]
[1724465190836,0.8272273,153.62,153.6,1.30188712]
[1724465191949,0.8272273,153.62,153.59,20.0]
[1724465192113,0.8272273,153.62,153.59,21.30191923]
[1724465193260,0.8272273,153.62,153.59,20.0]
[1724465193460,4.99642468,153.61,153.56,26.07566862]
[1724465193749,0.8272273,153.62,153.57,20.0]
[1724465193957,13.14074667,153.61,153.57,20.0]
[1724465194252,8.1442754,153.6,153.57,20.0]
[1724465194456,8.1442754,153.59,153.57,20.0]
[1724465194650,8.1442754,153.58,153.57,20.0]
[1724465198154,8.14427938,153.58,153.57,20.12549]
[1724465198353,0.8272273,153.62,153.6,26.07566862]
[1724465198543,0.8272273,153.62,153.61,1.30178332]
[1724465200030,5.8233409,153.62,153.61,1.30178332]
[1724465200228,0.8272273,153.62,153.61,1.30178332]
[1724465200465,5.82334064,153.62,153.61,1.30178332]
[1724465202729,10.81948372,153.62,153.61,1.30178332]
[1724465203246,5.82334064,153.62,153.61,1.30178332]
[1724465207535,0.8272273,153.62,153.61,1.30178332]
[1724465208964,0.8272273,153.62,153.61,1.30177413]
[1724465209273,0.8272273,153.62,153.61,21.30160916]
[1724465209774,0.8272273,153.62,153.61,20.0]
[1724465210568,8.97060542,153.62,153.61,20.0]
[1724465210955,17.11398863,153.62,153.61,20.0]
[1724465213141,17.11398863,153.62,153.6,20.0]
[1724465213475,8.97060542,153.62,153.6,20.0]
[1724465213653,8.14377791,153.61,153.6,20.0]
[1724465216558,8.97060542,153.62,153.6,21.3018072]
[1724465216762,8.97060542,153.62,153.61,1.30175916]
[1724465217278,17.1141182,153.62,153.61,1.30175916]
[1724465217469,8.97074008,153.62,153.6,20.0]
[1724465217661,8.14351278,153.61,153.6,20.0]
[1724465217861,8.14351278,153.61,153.6,21.30177596]
[1724465218257,8.14351278,153.61,153.6,20.0]
[1724465218981,8.14351278,153.61,153.6,21.30177432]
[1724465220351,0.8272273,153.62,153.6,21.30177432]
[1724465220553,0.8272273,153.62,153.6,20.0]
[1724465220757,8.14373452,153.61,153.6,20.0]
[1724465221855,8.14373452,153.61,153.6,21.30179417]
[1724465222958,8.14373452,153.61,153.6,20.0]
[1724465223574,8.14373452,153.61,153.6,21.30182965]
[1724465225362,8.14373452,153.61,153.6,20.0]
[1724465225883,8.14373452,153.61,153.6,21.30181382]
[1724465226066,8.14373452,153.61,153.6,1.30181382]
[1724465226887,8.14373452,153.61,153.59,1.30178608]
[1724465227088,0.8272273,153.62,153.59,1.30178608]
[1724465227287,8.14377851,153.61,153.59,1.30178608]
[1724465227590,0.8272273,153.62,153.59,1.30178608]
[1724465227752,8.14377969,153.61,153.59,1.30178608]
[1724465227957,0.8272273,153.62,153.59,1.30178608]
[1724465228169,8.14378008,153.61,153.6,0.12549]
[1724465228386,8.14378008,153.61,153.6,46.20115862]
[1724465228387,8.14365875,153.61,153.6,46.20115862]
[1724465228881,0.8272273,153.62,153.6,46.20115862]
[1724465229086,0.8272273,153.62,153.61,1.30163253]
[1724465229456,8.97060365,153.62,153.61,1.30163253]
[1724465230886,8.97060365,153.62,153.6,46.20115862]
[1724465230887,0.8272273,153.62,153.6,47.50286142]
[1724465231097,0.8272273,153.62,153.61,1.30160943]
[1724465231274,8.97082392,153.62,153.61,1.42709943]
[1724465231891,8.97082392,153.62,153.61,0.12549]
[1724465232487,8.97081721,153.62,153.61,0.12549]
[1724465233365,15.0589,153.69,153.61,1.42713086]
[1724465233568,12.15894474,153.68,153.63,26.07566862]
[1724465233771,12.15894474,153.67,153.64,21.42683954]
[1724465233989,4.0158584,153.66,153.65,1.30137198]
[1724465235571,4.0158584,153.66,153.65,27.5025306]
[1724465235781,15.6855,153.73,153.65,47.5025306]
[1724465236063,4.01549511,153.72,153.66,21.3012032]
[1724465236285,4.01549511,153.71,153.66,21.3012032]
[1724465236479,4.01549511,153.7,153.66,21.3012032]
[1724465236686,4.01549511,153.69,153.67,26.20115862]
[1724465236887,15.6855,153.73,153.68,21.30105848]
[1724465237092,4.01527737,153.72,153.68,21.30105848]
[1724465237277,4.01527737,153.71,153.68,21.30105848]
[1724465237463,4.01527737,153.7,153.68,20.0]
[1724465237666,4.01527737,153.69,153.68,20.0]
[1724465238806,4.01527737,153.69,153.68,21.30107306]
[1724465239696,4.01532865,153.69,153.68,21.30107306]
[1724465240003,15.6855,153.73,153.68,21.42656306]
[1724465240177,4.01511901,153.72,153.68,20.0]
[1724465240589,4.01511901,153.71,153.68,20.0]
[1724465240790,4.01511901,153.7,153.68,20.0]
[1724465240997,15.6855,153.73,153.68,20.0]
[1724465241196,4.01514615,153.72,153.68,20.0]
[1724465241506,2.51514615,153.71,153.65,26.07566862]
[1724465241711,2.51514615,153.7,153.63,33.73608676]
[1724465241889,17.31187926,153.73,153.63,33.73608676]
[1724465243183,17.31187926,153.73,153.64,20.0]
[1724465243391,15.6855,153.73,153.65,1.30136406]
[1724465243589,15.6855,153.73,153.65,8.9617822]
[1724465245617,15.6855,153.73,153.65,33.73608676]
[1724465245825,15.6855,153.73,153.66,1.30121247]
[1724465246218,15.6855,153.73,153.66,45.0]
[1724465246420,15.6855,153.73,153.67,0.12549]
[1724465249216,15.6855,153.73,153.67,1.42655294]
[1724465254742,15.6855,153.73,153.67,0.12549]
[1724465255039,15.6855,153.73,153.67,0.25098]
[1724465262638,15.6855,153.73,153.67,1.55201006]
[1724465262821,15.6855,153.73,153.67,0.25098]
[1724465264242,15.6855,153.73,153.67,46.32664862]
[1724465264441,6.3868,153.74,153.69,26.07566862]
[1724465264626,16.9188862,153.77,153.7,1.42631782]
[1724465264833,16.9188862,153.77,153.7,66.42631782]
[1724465265552,16.9188862,153.77,153.71,0.12549]
[1724465265762,16.9188862,153.77,153.71,1.42618701]
[1724465268845,16.9188862,153.77,153.72,0.12549]
[1724465270440,16.9188862,153.77,153.72,1.42617733]
[1724465271467,16.9188862,153.77,153.72,0.12549]
[1724465271666,16.9188862,153.77,153.71,26.20115862]
[1724465273255,16.9188862,153.77,153.72,1.30072267]
[1724465273439,16.9188862,153.77,153.71,26.20115862]
[1724465273640,16.9188862,153.77,153.72,0.12549]
[1724465274779,16.9188862,153.77,153.71,26.20115862]
[1724465278181,16.9188862,153.77,153.72,1.30072274]
[1724465279075,16.9188862,153.77,153.71,26.20115862]
[1724465279568,18.54478975,153.77,153.71,0.12549]
[1724465279777,18.54478975,153.77,153.7,20.12549]
[1724465280169,16.9188862,153.77,153.71,1.30085343]
[1724465280751,1.62611617,153.76,153.67,33.73608676]
[1724465281660,6.6495,153.75,153.67,33.73608676]
[1724465281862,6.6495,153.75,153.68,1.30107127]
[1724465282376,6.6495,153.75,153.68,21.30107127]
[1724465283056,6.6495,153.75,153.69,0.12549]
[1724465283374,6.6495,153.75,153.69,1.42643305]
[1724465283761,6.6495,153.75,153.69,71.20115862]
[1724465283959,6.6495,153.75,153.7,0.12549]
[1724465284382,6.6495,153.75,153.69,71.20115862]
[1724465285059,6.6495,153.75,153.69,26.20115862]
[1724465285576,6.6495,153.75,153.7,1.30088069]
[1724465285889,6.6495,153.75,153.71,1.30089374]
[1724465286679,6.6495,153.75,153.69,26.20115862]
[1724465287976,6.6495,153.75,153.7,46.42629457]
[1724465288158,6.6495,153.75,153.71,0.12549]
[1724465288367,6.6495,153.75,153.71,1.42625314]
[1724465288568,6.6495,153.75,153.71,1.30076314]
[1724465288766,6.6495,153.75,153.71,21.30076314]
[1724465289450,6.6495,153.75,153.71,47.37643176]
[1724465290086,16.9188862,153.77,153.71,47.37643176]
[1724465290679,16.9188862,153.77,153.72,0.12549]
[1724465290894,16.9188862,153.77,153.72,45.12549]
[1724465291089,16.9188862,153.77,153.73,1.30063033]
[1724465292088,16.9188862,153.77,153.75,26.07566862]
[1724465292392,6.6495,153.86,153.76,27.37619398]
[1724465292597,6.6495,153.86,153.81,26.07566862]
[1724465292772,6.6495,153.86,153.82,1.30003075]
[1724465293168,6.6495,153.86,153.81,26.07566862]
[1724465293599,6.6495,153.86,153.82,1.29996251]
[1724465294399,5.1495,153.86,153.82,1.29996251]
[1724465294581,5.1495,153.86,153.83,27.37562769]
[1724465294777,5.1495,153.86,153.84,1.29988513]
[1724465296988,16.4738,153.87,153.84,1.29988513]
[1724465297191,16.4738,153.87,153.83,26.07566862]
[1724465297672,16.4738,153.87,153.84,1.29974694]
[1724465297884,16.4738,153.87,153.83,26.07566862]
[1724465299290,16.4738,153.87,153.84,1.29986341]
[1724465299588,16.4738,153.87,153.81,26.07566862]
[1724465301294,16.4738,153.87,153.83,26.07566862]
[1724465301605,16.4738,153.87,153.84,1.299801]
[1724465302129,21.3393,153.9,153.85,26.07566862]
[1724465302401,21.3393,153.9,153.86,1.29967032]
[1724465305291,21.3393,153.9,153.85,26.07566862]
[1724465309793,21.3393,153.9,153.83,26.07566862]
[1724465309995,21.3393,153.9,153.84,1.29970619]
[1724465314526,21.3393,153.9,153.85,26.07566862]
[1724465314821,21.3393,153.9,153.86,1.29970039]
[1724465315207,21.3393,153.9,153.87,26.07566862]
[1724465315411,15.1037,153.9,153.88,1.29955444]
[1724465317142,15.1037,153.9,153.85,26.07566862]
[1724465319528,15.1037,153.9,153.83,26.07566862]
[1724465320400,1.62463649,153.89,153.83,26.07566862]
[1724465320622,15.1037,153.9,153.83,26.07566862]
[1724465321431,15.1037,153.9,153.8,1.83955423]
[1724465321432,15.1037,153.9,153.85,26.07566862]
[1724465321635,15.1037,153.9,153.86,1.29960771]
[1724465324711,15.1037,153.9,153.87,26.07566862]
[1724465324912,15.1037,153.9,153.88,1.29954872]
[1724465327045,15.1037,153.9,153.87,26.07566862]
[1724465327210,15.1037,153.9,153.85,26.07566862]
[1724465329037,15.1037,153.9,153.86,1.29955838]
[1724465330333,15.1037,153.9,153.85,26.07566862]
[1724465330511,15.1037,153.9,153.83,26.07566862]
[1724465330709,6.1116,153.89,153.83,26.07566862]
[1724465330912,6.1116,153.89,153.84,1.29979544]
[1724465331110,6.1116,153.89,153.83,26.07566862]
[1724465334134,6.1116,153.89,153.84,1.29977328]
[1724465335435,6.1116,153.89,153.83,26.07566862]
[1724465335647,1.62471893,153.88,153.81,26.07566862]
[1724465335813,1.62471893,153.88,153.79,26.07566862]
[1724465338922,15.2091,153.87,153.78,1.83254904]
[1724465339243,16.1757,153.85,153.76,6.79513553]
[1724465339429,1.62544628,153.84,153.75,26.07566862]
[1724465340841,22.3129,153.83,153.73,26.07566862]
[1724465341027,1.62585113,153.82,153.72,6.79689205]
[1724465341234,54.88926862,153.83,153.73,1.30068148]
[1724465341442,22.3129,153.83,153.73,26.07566862]
[1724465341614,22.3129,153.83,153.74,1.30054435]
[1724465342447,22.3129,153.83,153.75,26.07566862]
[1724465342747,22.3129,153.83,153.76,1.30037864]
[1724465344438,22.3129,153.83,153.76,0.89702282]
[1724465344752,22.3129,153.83,153.77,26.07566862]
[1724465345046,22.2629,153.83,153.77,27.25426065]
[1724465345424,22.2629,153.83,153.77,26.07566862]
[1724465346125,22.2629,153.83,153.78,1.17811051]
[1724465346326,22.2629,153.83,153.77,26.07566862]
[1724465346518,22.2629,153.83,153.75,26.07566862]
[1724465346718,22.2629,153.83,153.76,21.17881733]
[1724465346921,22.2629,153.83,153.77,1.17882156]
[1724465347844,22.2629,153.83,153.76,20.0]
[1724465348046,22.2629,153.83,153.77,27.25411034]
[1724465348733,22.2629,153.83,153.77,26.07566862]
[1724465348937,22.2629,153.83,153.79,26.07566862]
[1724465349670,22.2629,153.83,153.8,1.17778041]
[1724465349849,22.3129,153.87,153.81,26.07566862]
[1724465350049,22.3129,153.87,153.82,1.17719171]
[1724465350430,22.3129,153.87,153.81,26.07566862]
[1724465354550,1.62495253,153.86,153.79,26.07566862]
[1724465354748,1.62495253,153.86,153.8,20.0]
[1724465355132,1.62495253,153.86,153.79,26.07566862]
[1724465355333,1.62495253,153.86,153.77,26.07566862]
[1724465355642,1.62520724,153.85,153.77,26.07566862]
[1724465356555,1.62520783,153.86,153.77,26.07566862]
[1724465356853,1.62520814,153.85,153.77,26.07566862]
[1724465357162,22.3129,153.87,153.78,1.17820309]
[1724465357331,22.3129,153.87,153.78,21.17820309]
[1724465357534,1.62534049,153.86,153.78,20.0]
[1724465357761,1.62531858,153.85,153.78,20.0]
[1724465357956,22.3129,153.87,153.79,1.17813803]
[1724465358154,22.3129,153.87,153.78,20.0]
[1724465358661,22.3129,153.87,153.79,27.25382944]
[1724465358865,22.3129,153.87,153.8,1.17786532]
[1724465359241,22.3129,153.87,153.81,26.07566862]
[1724465359949,1.6251324,153.86,153.81,26.07566862]
[1724465360245,1.6251324,153.86,153.79,26.07566862]
[1724465360433,1.62521526,153.85,153.79,26.07566862]
[1724465360837,1.62521526,153.85,153.78,20.0]
[1724465361264,1.62521526,153.85,153.77,26.07566862]
[1724465362964,22.3129,153.87,153.78,1.1781575]
[1724465364268,22.3129,153.87,153.77,26.07566862]
[1724465364857,1.62517701,153.86,153.79,26.07566862]
[1724465365163,1.62521638,153.85,153.79,26.07566862]
[1724465367073,22.3129,153.87,153.77,26.07566862]
[1724465367375,22.3129,153.87,153.78,1.17842372]
[1724465370174,6.3241,153.85,153.75,26.07566862]
[1724465370350,16.3986,153.83,153.75,26.07566862]
[1724465370547,1.6255767,153.82,153.75,26.07566862]
[1724465372172,16.3986,153.83,153.75,26.07566862]
[1724465372889,1.62555184,153.82,153.75,26.07566862]
[1724465373065,6.3241,153.81,153.75,26.07566862]
[1724465376788,6.3241,153.81,153.76,1.17893394]
[1724465378686,6.3241,153.81,153.77,27.25427635]
[1724465378880,6.3241,153.81,153.78,1.17849189]
[1724465379189,6.3241,153.81,153.77,26.07566862]
[1724465381505,6.3241,153.81,153.75,26.07566862]
[1724465383100,16.3986,153.83,153.77,26.07566862]
[1724465383307,16.3986,153.83,153.8,26.07566862]
[1724465392393,16.3986,153.83,153.78,2.9877143]
[1724465392394,6.4329,153.86,153.82,26.07566862]
[1724465392597,8.05805099,153.86,153.82,26.07566862]
[1724465393323,6.4329,153.86,153.82,26.07566862]
[1724465394419,1.62514212,153.85,153.8,26.07566862]
[1724465395202,8.05813631,153.86,153.8,26.07566862]
[1724465395601,1.62523606,153.85,153.8,26.07566862]
[1724465396101,8.05811967,153.86,153.8,26.07566862]
[1724465397420,6.4329,153.86,153.8,26.07566862]
[1724465399329,6.4329,153.86,153.81,1.17766424]
[1724465399751,1.62511827,153.85,153.8,26.07566862]
[1724465400127,1.62511827,153.85,153.78,26.07566862]
[1724465411636,6.4329,153.86,153.79,1.17811802]
[1724465411941,6.4329,153.86,153.8,26.07566862]
[1724465412826,6.4329,153.86,153.82,26.07566862]
[1724465420444,6.4329,153.86,153.77,1.89668678]
[1724465420445,6.4329,153.86,153.8,26.07566862]
[1724465420655,8.05786874,153.86,153.8,26.07566862]
[1724465421452,6.4329,153.86,153.8,26.07566862]
[1724465422450,6.4329,153.86,153.81,1.17772036]
[1724465422949,6.4329,153.86,153.8,26.07566862]
[1724465423455,6.4329,153.86,153.81,1.17771846]
[1724465423955,6.4329,153.86,153.8,26.07566862]
[1724465426164,6.4329,153.86,153.78,26.07566862]
[1724465426456,6.4329,153.86,153.79,0.12549]
[1724465427456,1.62516386,153.85,153.78,26.07566862]
[1724465427659,1.62516386,153.85,153.77,1.77119678]
[1724465427835,6.4329,153.86,153.8,26.07566862]
[1724465428228,6.4329,153.86,153.81,1.17739139]
[1724465434445,6.4329,153.86,153.8,27.87757764]
[1724465435356,6.2444,153.84,153.77,6.79443705]
[1724465435665,17.09842515,153.83,153.73,27.86566587]
[1724465435966,6.2444,153.81,153.73,27.86566587]
[1724465436265,1.62569178,153.8,153.73,27.86566587]
[1724465437849,6.2444,153.81,153.74,1.17908956]
[1724465438057,6.2444,153.81,153.75,26.07566862]
[1724465438364,6.2444,153.81,153.77,26.07566862]
[1724465438669,6.2444,153.81,153.78,1.17814179]
[1724465439243,15.4728,153.83,153.79,26.07566862]
[1724465439472,15.4728,153.83,153.8,1.17787857]
[1724465442256,6.1044,153.81,153.73,27.86566587]
[1724465442444,6.1044,153.81,153.74,20.0]
[1724465442968,6.1044,153.81,153.73,27.86566587]
[1724465443570,1.62563188,153.8,153.74,45.25098]
[1724465444848,1.62563188,153.8,153.71,32.87342522]
[1724465444849,1.62562915,153.79,153.71,32.87342522]
[1724465445049,1.62562915,153.79,153.71,26.07566862]
[1724465446667,1.62562915,153.79,153.72,0.12549]
[1724465447048,1.62562915,153.79,153.7,1.75746533]
[1724465447355,1.62562915,153.79,153.71,0.25098]
[1724465447562,1.62562915,153.79,153.71,0.12549]
[1724465449375,1.62562915,153.79,153.7,20.0]
[1724465451360,6.1044,153.78,153.7,20.0]
[1724465451681,1.62608841,153.77,153.7,20.0]
[1724465452175,1.62608841,153.77,153.69,28.04142752]
[1724465452362,1.62608841,153.77,153.7,0.12549]
[1724465453979,17.93408742,153.76,153.69,26.07566862]
[1724465454478,16.308,153.76,153.69,26.07566862]
[1724465454978,16.308,153.76,153.7,1.1806388]
[1724465455992,16.308,153.76,153.71,26.07566862]
[1724465456276,16.308,153.76,153.73,26.07566862]
[1724465456473,16.308,153.76,153.74,1.17942965]
[1724465456673,16.308,153.76,153.73,26.07566862]
[1724465457068,16.308,153.76,153.74,1.17975092]
[1724465459801,6.1044,153.78,153.75,0.12549]
[1724465459983,6.1044,153.78,153.73,26.07566862]
[1724465460175,6.1044,153.78,153.74,0.12549]
[1724465461985,6.1044,153.78,153.73,26.07566862]
[1724465462390,6.1044,153.78,153.74,1.17952688]
[1724465463188,6.1044,153.78,153.75,26.07566862]
[1724465464089,6.1044,153.78,153.76,1.17936132]
[1724465464585,15.2829,153.8,153.77,27.25468915]
[1724465465284,6.3383,153.82,153.79,26.07566862]
[1724465465777,6.3383,153.82,153.8,1.17836349]
[1724465465974,15.2829,153.84,153.8,1.17836349]
[1724465466178,15.2829,153.84,153.79,26.20115862]
[1724465466377,15.2829,153.84,153.8,0.12549]
[1724465467985,15.2829,153.84,153.79,26.07566862]
[1724465468368,15.2829,153.84,153.8,1.17792398]
[1724465471990,15.2829,153.84,153.79,26.07566862]
[1724465472898,15.2829,153.84,153.8,1.17760858]
[1724465473090,15.2829,153.84,153.79,26.07566862]
[1724465473091,15.2829,153.84,153.81,1.17760791]
[1724465474093,15.2829,153.84,153.79,26.07566862]
[1724465474094,15.2829,153.84,153.8,1.17760897]
[1724465476078,15.2829,153.84,153.81,26.20115862]
[1724465476281,15.2829,153.84,153.82,1.17735748]
[1724465476594,6.3383,153.86,153.82,1.17735748]
[1724465478685,6.3383,153.86,153.81,26.07566862]
[1724465480393,6.3383,153.86,153.82,1.17743497]
[1724465482525,6.3383,153.86,153.81,26.07566862]
[1724465482816,6.3383,153.86,153.82,1.1774692]
[1724465492293,6.3383,153.86,153.81,26.07566862]
[1724465492715,6.3383,153.86,153.82,1.17729738]
[1724465496918,6.3383,153.86,153.83,27.25293185]
[1724465497110,16.6275,153.88,153.83,27.25293185]
[1724465503827,16.6275,153.88,153.83,26.07566862]
[1724465506701,16.6275,153.88,153.84,1.17708278]
[1724465507122,16.6275,153.88,153.83,26.07566862]
[1724465507934,16.6275,153.88,153.84,1.17709919]
[1724465508227,6.0273,153.9,153.84,1.17709919]
[1724465509615,6.0273,153.9,153.83,26.07566862]
[1724465512619,6.0273,153.9,153.84,1.17690969]
[1724465514841,6.0273,153.9,153.83,26.07566862]
[1724465515536,6.0273,153.9,153.84,1.1769114]
[1724465517225,6.0273,153.9,153.83,26.07566862]
[1724465519343,6.0273,153.9,153.84,1.17688739]
[1724465521429,1.62479792,153.89,153.83,26.07566862]
[1724465523753,6.0273,153.9,153.84,10.42403102]
[1724465531957,15.9628,153.92,153.84,10.42403102]
[1724465532758,15.9628,153.92,153.84,1.17708102]
[1724465533960,0.8330862,153.93,153.85,15.9877]
[1724465534165,0.8330862,153.93,153.86,1.17649648]
[1724465536866,0.8330862,153.93,153.87,26.07566862]
[1724465537064,0.8330862,153.93,153.88,0.12549]
[1724465538842,0.8330862,153.93,153.88,1.30099735]
[1724465539760,0.8330862,153.93,153.89,26.07566862]
[1724465539944,0.8330862,153.93,153.9,1.17535284]
[1724465542858,0.8330862,153.93,153.88,21.30084005]
[1724465551568,0.8330862,153.93,153.88,30.13184934]
[1724465552566,0.8330862,153.93,153.91,32.18816862]
[1724465552759,47.70026862,154.04,153.92,1.42539721]
[1724465552964,47.70026862,154.04,153.93,1.17428961]
[1724465553350,21.6246,154.04,153.93,27.24995823]
[1724465553666,21.6246,154.04,153.94,0.12549]
[1724465553868,21.6246,154.04,153.94,21.29953434]
[1724465554272,21.6246,154.04,153.95,60.4379]
[1724465554464,21.6246,154.04,153.96,1.29891458]
[1724465555172,21.6246,154.04,153.97,7.88266267]
[1724465555365,1.6233528,154.03,153.97,7.88266267]
[1724465555869,23.60347191,154.08,153.99,16.0401]
[1724465556063,0.8330862,154.08,154.0,11.34393985]
[1724465557674,27.69887318,154.07,154.0,10.17107642]
[1724465557881,27.69887318,154.07,153.99,16.0401]
[1724465559481,26.07566862,154.07,153.99,16.0401]
[1724465564392,0.8330862,154.08,153.99,16.0401]
[1724465564676,45.8330862,154.08,153.99,16.0401]
[1724465573083,45.8330862,154.08,154.0,1.17286343]
[1724465573386,0.8330862,154.08,154.0,1.17286343]
[1724465576084,1.62319517,154.07,153.99,26.21117642]
[1724465576389,1.62319517,154.07,153.99,16.0401]
[1724465579591,27.69886379,154.07,153.99,16.0401]
[1724465579994,6.4909,154.06,153.99,16.0401]
[1724465580185,27.69911789,154.05,153.99,16.0401]
[1724465580388,26.07566862,154.03,153.95,15.6832]
[1724465580580,1.62375506,154.02,153.95,15.6832]
[1724465580780,26.07566862,154.03,153.95,15.6832]
[1724465580781,1.62374318,154.01,153.95,15.6832]
[1724465582772,27.6994118,154.01,153.95,15.6832]
[1724465583100,27.6994118,154.01,153.93,6.5886]
[1724465583270,34.1924118,154.01,153.93,6.5886]
[1724465583473,1.62400859,154.0,153.91,15.6832]
[1724465584288,26.07566862,153.99,153.91,15.6832]
[1724465584495,1.62405829,153.98,153.91,15.6832]
[1724465586697,26.07566862,154.01,153.92,1.175065]
[1724465587503,32.56826862,154.03,153.91,41.75886862]
[1724465587681,1.62377891,154.02,153.91,41.75886862]
[1724465589293,1.62377891,154.02,153.91,15.6832]
[1724465589498,26.07566862,154.01,153.91,15.6832]
[1724465589696,1.62393706,154.0,153.91,15.6832]
[1724465591889,26.07566862,154.01,153.92,1.17488811]
[1724465592602,26.07566862,154.01,153.91,24.79356868]
[1724465593399,26.07566862,154.01,153.92,1.17487986]
[1724465598312,32.56796862,154.03,153.92,1.17487986]
[1724465599406,1.62375175,154.02,153.91,50.8692373]
[1724465599711,1.62375212,154.01,153.91,50.8692373]
[1724465600200,6.4928,154.02,153.91,50.8692373]
[1724465600404,1.62375209,154.0,153.91,41.75886862]
[1724465600883,1.62375209,154.0,153.91,15.6832]
[1724465601493,26.07566862,154.01,153.91,15.6832]
[1724465601701,26.07566862,154.01,153.92,1.17481249]
[1724465602904,1.62392015,154.0,153.91,15.6832]
[1724465605306,32.56876862,154.01,153.91,15.6832]
[1724465606206,26.07566862,154.01,153.92,1.17481143]
[1724465606786,32.56796862,154.03,153.93,1.17458067]
[1724465606984,32.56796862,154.03,153.91,41.75886862]
[1724465607202,32.56796862,154.03,153.92,1.29982304]
[1724465610610,32.56796862,154.03,153.92,0.12549]
[1724465610807,53.11642889,154.02,153.91,15.6832]
[1724465611010,1.62392024,154.01,153.91,15.6832]
[1724465612211,8.11692024,154.01,153.91,15.6832]
[1724465612397,6.493,154.01,153.92,1.17477665]
[1724465613211,6.4937,154.0,153.92,1.17477665]
[1724465613508,1.62391869,153.99,153.91,15.6832]
[1724465613685,32.56876862,154.01,153.92,1.17478318]